bitfinex/quotes_BTCUSD_20240731
["timestamp","ask_amount","ask_price","bid_price","bid_amount"]
[1722464834369,2.33338365,64823.0,64822.0,0.00083]
[1722464834581,2.34738365,64823.0,64822.0,0.00083]
[1722464834709,2.35740607,64823.0,64822.0,0.00083]
[1722464835154,2.34740607,64823.0,64822.0,0.00083]
[1722464835351,2.19570043,64823.0,64822.0,0.00083]
[1722464835552,2.20970043,64823.0,64822.0,0.00083]
[1722464835924,1.87716843,64823.0,64822.0,0.00083]
[1722464836151,1.89116843,64823.0,64822.0,0.00083]
[1722464836346,1.8910862,64823.0,64822.0,0.00083]
[1722464836712,1.8770862,64823.0,64822.0,0.00083]
[1722464836912,1.87761557,64823.0,64822.0,0.00083]
[1722464837251,1.76524691,64823.0,64822.0,0.00083]
[1722464837456,1.74901642,64823.0,64822.0,0.00083]
[1722464837775,1.74007252,64823.0,64822.0,0.00083]
[1722464837935,1.64821632,64823.0,64822.0,0.00083]
[1722464838160,1.7171074,64823.0,64822.0,0.00083]
[1722464838367,1.74007252,64823.0,64822.0,0.00083]
[1722464838577,1.64821632,64823.0,64822.0,0.00083]
[1722464838796,1.74821632,64823.0,64822.0,0.00083]
[1722464839656,1.86304729,64823.0,64822.0,0.00083]
[1722464839892,1.71404691,64823.0,64822.0,0.00083]
[1722464840110,1.86321207,64823.0,64822.0,0.00083]
[1722464840342,1.84024726,64823.0,64822.0,0.00083]
[1722464840563,2.05690504,64823.0,64822.0,0.00083]
[1722464840765,2.20110504,64823.0,64822.0,0.00083]
[1722464844369,2.3159398,64823.0,64822.0,0.00083]
[1722464844589,2.20110504,64823.0,64822.0,0.00083]
[1722464845529,2.31593973,64823.0,64822.0,0.00083]
[1722464845982,2.20110504,64823.0,64822.0,0.00083]
[1722464846227,2.29297965,64823.0,64822.0,0.00083]
[1722464846334,2.20110504,64823.0,64822.0,0.00083]
[1722464846554,2.17691015,64823.0,64822.0,0.00083]
[1722464846787,2.1767384,64823.0,64822.0,0.00083]
[1722464848224,2.38469668,64823.0,64822.0,0.00083]
[1722464848376,2.1767384,64823.0,64822.0,0.00083]
[1722464849749,2.20093675,64823.0,64822.0,0.00083]
[1722464852554,2.20219579,64823.0,64822.0,0.00083]
[1722464854382,3.00237055,64823.0,64822.0,0.00083]
[1722464854584,1.230679,64822.0,64821.0,0.00083]
[1722464854798,2.2269809,64822.0,64821.0,0.00083]
[1722464854993,2.36488845,64822.0,64821.0,0.00083]
[1722464855221,2.15661944,64822.0,64821.0,0.00083]
[1722464855653,2.22687325,64822.0,64821.0,0.00083]
[1722464855861,2.22587766,64822.0,64821.0,0.00083]
[1722464856206,2.16962371,64822.0,64821.0,0.00083]
[1722464856602,2.15962371,64822.0,64821.0,0.00083]
[1722464856979,2.23013799,64822.0,64821.0,0.00083]
[1722464857591,2.44893799,64822.0,64821.0,0.00083]
[1722464857791,2.64541929,64822.0,64821.0,0.00083]
[1722464858190,2.64613098,64822.0,64821.0,0.00083]
[1722464858397,3.44590498,64822.0,64821.0,1e-06]
[1722464858649,3.44590498,64822.0,64809.0,0.00868]
[1722464858650,1.702173,64810.0,64809.0,0.00868]
[1722464858883,1.141155,64804.0,64803.0,0.0001]
[1722464859086,2.08387313,64804.0,64803.0,0.0001]
[1722464859200,2.08387313,64804.0,64800.0,2.78115257]
[1722464859201,1.703766,64801.0,64800.0,2.78115257]
[1722464859400,1.703766,64801.0,64800.0,0.85568789]
[1722464859401,2.63774689,64801.0,64800.0,0.85568789]
[1722464859657,2.80704206,64801.0,64800.0,0.85568789]
[1722464859914,2.68916713,64801.0,64800.0,0.85568789]
[1722464860500,2.68916713,64801.0,64800.0,0.81237789]
[1722464861282,0.01,64791.0,64773.0,0.00868]
[1722464861476,0.01,64791.0,64788.0,9.5e-07]
[1722464861477,2.54572684,64789.0,64788.0,9.5e-07]
[1722464861771,2.93698995,64789.0,64788.0,9.5e-07]
[1722464861976,1.88736981,64789.0,64788.0,9.5e-07]
[1722464862177,1.69885412,64789.0,64788.0,9.5e-07]
[1722464862585,2.01754812,64789.0,64788.0,9.5e-07]
[1722464862786,2.07642958,64789.0,64788.0,9.5e-07]
[1722464862917,2.00754812,64789.0,64788.0,9.5e-07]
[1722464863299,1.65227072,64789.0,64788.0,9.5e-07]
[1722464863715,2.24106315,64789.0,64788.0,9.5e-07]
[1722464863965,2.34888169,64789.0,64788.0,9.5e-07]
[1722464864138,2.35488169,64789.0,64788.0,9.5e-07]
[1722464864275,2.73394334,64789.0,64788.0,9.5e-07]
[1722464864478,2.73394334,64789.0,64783.0,0.00180395]
[1722464864479,1.090513,64784.0,64783.0,0.00180395]
[1722464864683,1.67497169,64784.0,64783.0,0.00180395]
[1722464864879,1.63835472,64784.0,64783.0,0.00180395]
[1722464866306,1.65235472,64784.0,64783.0,0.00180395]
[1722464867155,2.42615402,64784.0,64783.0,0.00180395]
[1722464867371,2.29967272,64784.0,64783.0,0.00180395]
[1722464867579,2.30567272,64784.0,64783.0,0.00180395]
[1722464867785,2.28567272,64784.0,64783.0,0.00180395]
[1722464868125,2.29967272,64784.0,64783.0,0.00180395]
[1722464868703,2.28567272,64784.0,64783.0,0.00180395]
[1722464868909,2.29967272,64784.0,64783.0,0.00263395]
[1722464869266,2.30567272,64784.0,64783.0,0.00263395]
[1722464869490,2.45515402,64784.0,64783.0,0.00263395]
[1722464869688,2.52921441,64784.0,64783.0,0.00263395]
[1722464869894,2.83793241,64784.0,64783.0,0.00263395]
[1722464870099,2.68845111,64784.0,64783.0,0.00263395]
[1722464870262,2.65260452,64784.0,64783.0,0.00263395]
[1722464870932,2.63860452,64784.0,64783.0,0.00263395]
[1722464871242,2.99069591,64784.0,64783.0,9.5e-07]
[1722464871416,2.74072748,64784.0,64783.0,9.5e-07]
[1722464871659,2.34962228,64784.0,64783.0,9.5e-07]
[1722464871789,2.28567272,64784.0,64783.0,9.5e-07]
[1722464871988,2.29967272,64784.0,64783.0,9.5e-07]
[1722464872619,2.30567272,64784.0,64783.0,9.5e-07]
[1722464872824,2.31967272,64784.0,64783.0,9.5e-07]
[1722464873025,2.66201899,64784.0,64783.0,9.5e-07]
[1722464873231,2.62839072,64784.0,64783.0,9.5e-07]
[1722464873855,2.62839072,64784.0,64782.0,6.5e-07]
[1722464873856,0.03,64783.0,64782.0,6.5e-07]
[1722464874009,2.36021784,64783.0,64782.0,6.5e-07]
[1722464874212,2.71461637,64783.0,64782.0,6.5e-07]
[1722464874414,2.74744323,64783.0,64782.0,6.5e-07]
[1722464874613,2.92276532,64783.0,64782.0,6.5e-07]
[1722464874930,2.92272657,64783.0,64782.0,6.5e-07]
[1722464875312,2.555972,64774.0,64773.0,1e-06]
[1722464875515,3.24440646,64774.0,64773.0,1e-06]
[1722464875812,1.548689,64758.0,64757.0,0.00869]
[1722464876014,2.00653072,64758.0,64757.0,0.00869]
[1722464876212,2.10653072,64758.0,64757.0,0.00869]
[1722464876489,2.12953072,64758.0,64757.0,0.00869]
[1722464876816,1.78768872,64758.0,64757.0,0.00869]
[1722464877017,1.64059355,64758.0,64757.0,0.00869]
[1722464877864,1.33175155,64758.0,64757.0,0.00869]
[1722464878241,1.66481563,64758.0,64757.0,0.00869]
[1722464878568,1.34575155,64758.0,64757.0,0.00869]
[1722464878945,1.33175155,64758.0,64757.0,0.00869]
[1722464879156,1.64059355,64758.0,64757.0,0.00869]
[1722464879357,1.65459355,64758.0,64757.0,0.00869]
[1722464880628,1.64059355,64758.0,64757.0,0.00869]
[1722464881032,1.34575155,64758.0,64757.0,0.00869]
[1722464881485,1.66481546,64758.0,64757.0,0.00869]
[1722464881848,1.67881546,64758.0,64757.0,0.00869]
[1722464882249,1.35597346,64758.0,64757.0,0.00869]
[1722464882449,1.04713146,64758.0,64757.0,0.00869]
[1722464882857,0.62806755,64758.0,64757.0,0.00869]
[1722464883058,1.24575155,64758.0,64757.0,0.00869]
[1722464884243,1.23175155,64758.0,64757.0,0.00869]
[1722464884460,1.24575155,64758.0,64757.0,0.00869]
[1722464884659,1.55459355,64758.0,64757.0,0.00869]
[1722464884941,1.54059355,64758.0,64757.0,0.00869]
[1722464885162,1.23175155,64758.0,64757.0,0.00869]
[1722464885369,0.93690955,64758.0,64757.0,0.00869]
[1722464885571,0.47364655,64758.0,64757.0,0.00869]
[1722464885773,0.45964655,64758.0,64757.0,0.00869]
[1722464886181,0.49786617,64758.0,64757.0,0.00869]
[1722464886385,0.96112917,64758.0,64757.0,0.00869]
[1722464886811,0.62806755,64758.0,64757.0,0.00869]
[1722464887188,0.93690955,64758.0,64757.0,0.00869]
[1722464887353,1.24575155,64758.0,64757.0,0.00869]
[1722464887562,1.23175155,64758.0,64757.0,0.00869]
[1722464887769,1.61429355,64758.0,64757.0,0.00869]
[1722464888366,1.30545155,64758.0,64757.0,0.00869]
[1722464888746,1.60429355,64758.0,64757.0,0.00869]
[1722464888950,1.30445155,64758.0,64757.0,0.00869]
[1722464889106,1.61329355,64758.0,64757.0,0.00869]
[1722464889308,1.24075155,64758.0,64757.0,0.00869]
[1722464889486,1.54059355,64758.0,64757.0,0.00869]
[1722464889686,1.23175155,64758.0,64757.0,0.00869]
[1722464889905,1.54059355,64758.0,64757.0,0.00869]
[1722464890122,1.25597233,64758.0,64757.0,0.00869]
[1722464890356,1.25558348,64758.0,64757.0,0.00869]
[1722464890708,1.26558348,64758.0,64757.0,0.00869]
[1722464891094,1.57442548,64758.0,64757.0,0.00869]
[1722464891328,1.5402047,64758.0,64757.0,0.00869]
[1722464891745,1.7137047,64758.0,64757.0,0.00869]
[1722464891947,2.0225467,64758.0,64757.0,0.00869]
[1722464892154,1.7027047,64758.0,64757.0,0.00869]
[1722464892417,1.7127047,64758.0,64757.0,0.00869]
[1722464892523,1.3413627,64758.0,64757.0,0.00869]
[1722464892934,1.7923047,64758.0,64757.0,0.00869]
[1722464893150,2.260628,64758.0,64757.0,0.00869]
[1722464893347,2.14537016,64758.0,64757.0,0.00869]
[1722464893550,2.15537016,64758.0,64757.0,0.00869]
[1722464893977,2.17836952,64758.0,64757.0,0.00869]
[1722464894381,2.16836952,64758.0,64757.0,0.00869]
[1722464894615,2.16431547,64758.0,64757.0,0.00869]
[1722464894812,2.11809266,64758.0,64757.0,0.00869]
[1722464895020,1.66715066,64758.0,64757.0,0.00869]
[1722464895234,1.65615066,64758.0,64757.0,0.00869]
[1722464895421,1.6402047,64758.0,64757.0,0.00869]
[1722464895622,0.9225207,64758.0,64757.0,0.00869]
[1722464895862,0.6276787,64758.0,64757.0,0.00869]
[1722464896207,0.4592577,64758.0,64757.0,0.06799]
[1722464896820,0.4592577,64758.0,64757.0,0.09169]
[1722464897080,0.4592577,64758.0,64757.0,0.246113]
[1722464897295,0.31009483,64758.0,64757.0,0.246113]
[1722464897624,0.32309483,64758.0,64757.0,0.863805]
[1722464898039,0.31009483,64758.0,64757.0,0.863805]
[1722464898258,0.33431308,64758.0,64757.0,0.863805]
[1722464898466,0.34131308,64758.0,64757.0,1.172651]
[1722464898667,0.4908648,64758.0,64757.0,0.09169]
[1722464899001,0.4838648,64758.0,64757.0,0.246113]
[1722464899211,0.4838648,64758.0,64757.0,0.248113]
[1722464899625,0.33431308,64758.0,64757.0,0.248113]
[1722464899827,0.33431308,64758.0,64757.0,0.556959]
[1722464900241,0.33431308,64758.0,64757.0,1.174651]
[1722464900393,0.33431308,64758.0,64757.0,1.186651]
[1722464900613,0.27869482,64758.0,64757.0,1.186651]
[1722464901166,0.27869482,64758.0,64757.0,1.62378615]
[1722464901167,0.25748401,64758.0,64757.0,1.62378615]
[1722464901376,0.24892317,64758.0,64757.0,1.41294015]
[1722464901569,0.24892317,64758.0,64757.0,1.41093369]
[1722464901729,0.24992317,64758.0,64757.0,1.41493369]
[1722464902070,0.24992317,64758.0,64757.0,1.58448541]
[1722464902311,0.24892317,64758.0,64757.0,1.89133141]
[1722464902522,0.24992317,64758.0,64757.0,1.89333141]
[1722464902728,0.20717953,64758.0,64757.0,1.86963141]
[1722464902942,0.17407242,64758.0,64757.0,2.30147741]
[1722464903148,0.17307242,64758.0,64757.0,2.29947741]
[1722464903364,0.15541729,64758.0,64757.0,2.30147741]
[1722464903564,0.09611729,64758.0,64757.0,2.24217741]
[1722464903766,0.09611729,64758.0,64757.0,2.31131461]
[1722464904202,0.09611729,64758.0,64757.0,1.93333141]
[1722464904403,0.09611729,64758.0,64757.0,1.90252317]
[1722464904512,0.09611729,64758.0,64757.0,1.83333141]
[1722464905134,0.09511729,64758.0,64757.0,1.83133141]
[1722464905354,0.09511729,64758.0,64757.0,1.32993369]
[1722464905566,0.09611729,64758.0,64757.0,1.34393369]
[1722464905966,0.09511729,64758.0,64757.0,1.32993369]
[1722464906221,0.09511729,64758.0,64757.0,1.189651]
[1722464906421,0.09511729,64758.0,64757.0,1.203651]
[1722464906422,0.09611729,64758.0,64757.0,1.203651]
[1722464906648,0.09611729,64758.0,64757.0,1.34193036]
[1722464906846,0.09611729,64758.0,64757.0,1.65277636]
[1722464906995,0.09611729,64758.0,64757.0,1.34393036]
[1722464907214,0.09611729,64758.0,64757.0,1.215651]
[1722464907544,0.09611729,64758.0,64757.0,1.34393502]
[1722464907743,0.07089904,64758.0,64757.0,1.32993502]
[1722464907971,0.07189904,64758.0,64757.0,1.34393502]
[1722464908104,0.07189904,64758.0,64757.0,1.215651]
[1722464908286,0.07189904,64758.0,64757.0,1.34393224]
[1722464909354,0.07189904,64758.0,64757.0,1.34393316]
[1722464909526,0.07189904,64758.0,64757.0,1.215651]
[1722464909728,0.07189904,64758.0,64757.0,1.29041512]
[1722464910092,0.07189904,64758.0,64757.0,1.58824653]
[1722464910376,0.07189904,64758.0,64757.0,1.92009253]
[1722464910604,0.07189904,64758.0,64757.0,3.42009253]
[1722464910816,0.07189904,64758.0,64757.0,3.29181284]
[1722464911021,0.02421203,64758.0,64757.0,1.92008704]
[1722464911221,0.02421203,64758.0,64757.0,2.19528704]
[1722464911359,0.33305203,64758.0,64757.0,2.50413304]
[1722464912157,0.30884,64758.0,64757.0,2.50413304]
[1722464912577,0.2573372,64758.0,64757.0,2.60413304]
[1722464913407,0.2573372,64758.0,64757.0,2.47585884]
[1722464913607,0.2573372,64758.0,64757.0,2.60411782]
[1722464913608,0.2073672,64758.0,64757.0,2.60411782]
[1722464913949,0.0015542,64788.0,64787.0,0.154351]
[1722464914148,0.08,64789.0,64787.0,0.16969964]
[1722464914357,0.08,64789.0,64788.0,0.771747]
[1722464914567,0.3087,64789.0,64788.0,0.154349]
[1722464914770,0.3087,64789.0,64787.0,0.01534864]
[1722464914970,0.75339972,64788.0,64787.0,0.01534864]
[1722464915141,1.37079872,64788.0,64787.0,0.01534864]
[1722464915365,1.07309972,64788.0,64787.0,0.01634864]
[1722464915574,1.09730703,64788.0,64787.0,0.01634864]
[1722464915683,1.40600603,64788.0,64787.0,0.01634864]
[1722464916314,1.39500603,64788.0,64787.0,0.01534864]
[1722464916783,0.77760803,64788.0,64787.0,0.01534864]
[1722464917165,1.08630703,64788.0,64787.0,0.01534864]
[1722464917763,1.39500603,64788.0,64787.0,0.01534864]
[1722464917966,1.37079872,64788.0,64787.0,0.01634864]
[1722464918170,0.59905172,64788.0,64787.0,0.01634864]
[1722464918391,1.06209972,64788.0,64787.0,0.01634864]
[1722464918584,0.59905172,64788.0,64787.0,0.01534864]
[1722464918829,0.3087,64788.0,64787.0,0.47940264]
[1722464919047,0.3087,64788.0,64787.0,0.78810564]
[1722464919482,0.3087,64788.0,64787.0,0.78710564]
[1722464919802,0.3087,64788.0,64787.0,1.09680864]
[1722464920206,0.3087,64788.0,64787.0,1.08146]
[1722464920364,0.3087,64788.0,64787.0,1.09146]
[1722464920576,0.33290381,64788.0,64787.0,1.09146]
[1722464920745,0.33290381,64788.0,64787.0,1.400163]
[1722464920932,0.33290381,64788.0,64787.0,1.399163]
[1722464921590,0.33290381,64788.0,64787.0,1.56871472]
[1722464921815,0.3087,64788.0,64787.0,1.66871472]
[1722464922209,0.3087,64788.0,64787.0,1.67871472]
[1722464922416,0.06476699,64788.0,64787.0,1.70371472]
[1722464922734,0.06476699,64788.0,64787.0,1.69371472]
[1722464922872,0.06476699,64788.0,64787.0,1.70471472]
[1722464923090,0.06476699,64788.0,64787.0,1.83292406]
[1722464923287,0.06476699,64788.0,64787.0,1.84191748]
[1722464924521,0.06476699,64788.0,64787.0,1.83091748]
[1722464924727,0.06476699,64788.0,64787.0,2.15362048]
[1722464925096,9.9e-07,64788.0,64787.0,2.25362048]
[1722464925750,9.9e-07,64788.0,64787.0,3.75362048]
[1722464925950,9.9e-07,64788.0,64787.0,4.06232348]
[1722464926128,9.9e-07,64788.0,64787.0,4.04832348]
[1722464926332,0.0241995,64788.0,64787.0,3.75362048]
[1722464926673,5e-07,64788.0,64787.0,3.75362048]
[1722464926807,0.3087,64788.0,64787.0,3.75362048]
[1722464928025,0.22614,64788.0,64787.0,3.75362048]
[1722464928239,0.13353,64788.0,64787.0,3.75362048]
[1722464929022,0.0765,64815.0,64814.0,0.771437]
[1722464929219,0.0765,64815.0,64814.0,0.47821064]
[1722464929448,0.38507,64815.0,64814.0,0.47821064]
[1722464930109,0.38507,64815.0,64814.0,1.09536064]
[1722464930110,0.33276678,64815.0,64814.0,1.09536064]
[1722464930309,0.33276678,64815.0,64814.0,1.10536064]
[1722464930758,0.30857,64815.0,64814.0,1.10536064]
[1722464931411,0.30857,64815.0,64814.0,1.20536064]
[1722464931614,0.30857,64815.0,64814.0,1.51393564]
[1722464932066,0.30857,64815.0,64814.0,1.20536064]
[1722464932681,0.30857,64815.0,64814.0,1.51393564]
[1722464933147,0.30857,64815.0,64814.0,1.20736064]
[1722464933359,0.30857,64815.0,64814.0,1.20536064]
[1722464933568,0.30857,64815.0,64814.0,1.19536064]
[1722464933781,0.30857,64815.0,64814.0,0.48734135]
[1722464933993,0.33276351,64815.0,64814.0,0.48734135]
[1722464934193,0.33276351,64815.0,64814.0,0.79591635]
[1722464934400,0.33276351,64815.0,64814.0,0.78056771]
[1722464934972,0.33276351,64815.0,64814.0,0.78856771]
[1722464935202,0.30857,64815.0,64814.0,0.78856771]
[1722464935404,0.30857,64815.0,64814.0,0.78056771]
[1722464935613,0.30857,64815.0,64814.0,0.771437]
[1722464936092,0.30857,64815.0,64804.0,0.1]
[1722464936093,0.0619,64813.0,64804.0,0.1]
[1722464936268,0.0619,64813.0,64804.0,0.11534864]
[1722464936495,0.30857,64812.0,64810.0,0.154296]
[1722464936621,0.30857,64812.0,64811.0,0.154294]
[1722464936839,0.30857,64812.0,64811.0,0.16964264]
[1722464937041,0.30857,64812.0,64811.0,0.78682064]
[1722464937441,0.30857,64812.0,64811.0,0.01534864]
[1722464937649,0.837446,64812.0,64811.0,0.01534864]
[1722464937850,0.609862,64812.0,64811.0,0.01534864]
[1722464938050,0.45557,64812.0,64811.0,0.01534864]
[1722464938255,0.94264325,64812.0,64811.0,0.01534864]
[1722464938505,0.47976725,64812.0,64811.0,0.01534864]
[1722464938803,0.45557,64812.0,64811.0,0.01534864]
[1722464939299,1.22703,64812.0,64811.0,0.01534864]
[1722464939730,0.918446,64812.0,64811.0,0.01534864]
[1722464939944,1.37658172,64812.0,64811.0,0.01534864]
[1722464940642,0.75941372,64812.0,64811.0,0.01534864]
[1722464940912,1.37658172,64812.0,64811.0,0.01534864]
[1722464941475,0.60512172,64812.0,64811.0,0.01534864]
[1722464941651,0.45557,64812.0,64811.0,0.16964264]
[1722464941862,0.48076798,64812.0,64811.0,0.462883]
[1722464942101,0.48076798,64812.0,64811.0,0.771472]
[1722464942280,0.45557,64812.0,64811.0,0.462883]
[1722464942755,0.30957,64812.0,64811.0,0.771472]
[1722464944030,0.30857,64812.0,64811.0,0.771472]
[1722464945197,0.30957,64812.0,64811.0,0.771472]
[1722464945408,0.30957,64812.0,64811.0,1.080061]
[1722464945588,0.33376582,64812.0,64811.0,1.080061]
[1722464945735,0.33276582,64812.0,64811.0,0.771472]
[1722464945944,0.33276582,64812.0,64811.0,0.774472]
[1722464946154,0.33276582,64812.0,64811.0,1.083061]
[1722464946374,0.33276582,64812.0,64811.0,1.460792]
[1722464946721,0.30857,64812.0,64811.0,1.31124028]
[1722464946870,0.30857,64812.0,64811.0,1.50192722]
[1722464947096,0.30857,64812.0,64811.0,1.83151622]
[1722464947526,0.30857,64812.0,64811.0,1.83051622]
[1722464947671,0.30857,64812.0,64811.0,1.83851622]
[1722464948323,0.30857,64812.0,64811.0,1.83051622]
[1722464948522,0.30857,64812.0,64811.0,1.84051622]
[1722464949099,0.30857,64812.0,64811.0,1.83051622]
[1722464949302,0.30857,64812.0,64811.0,2.01812209]
[1722464949456,0.30857,64812.0,64811.0,2.03012209]
[1722464949658,0.33276402,64812.0,64811.0,2.03012209]
[1722464950073,0.30857,64812.0,64811.0,2.03012209]
[1722464950273,0.1968568,64812.0,64811.0,1.84251622]
[1722464950489,0.17502489,64812.0,64811.0,1.84251622]
[1722464950730,0.17502489,64812.0,64811.0,1.83051622]
[1722464950926,0.17502489,64812.0,64811.0,2.13910522]
[1722464951126,0.17502489,64812.0,64811.0,2.34041153]
[1722464951351,0.00957,64823.0,64822.0,1.299479]
[1722464951598,0.00957,64823.0,64822.0,1.31482764]
[1722464951799,0.3181,64823.0,64822.0,1.44298052]
[1722464952098,0.3181,64823.0,64822.0,1.45298052]
[1722464952288,0.3181,64823.0,64822.0,1.44298052]
[1722464952491,0.3181,64823.0,64822.0,1.45298052]
[1722464952642,0.3181,64823.0,64822.0,1.44298052]
[1722464952845,0.3181,64823.0,64822.0,1.45698052]
[1722464953317,0.34229088,64823.0,64822.0,1.45698052]
[1722464954340,0.34229088,64823.0,64822.0,1.46698052]
[1722464954544,0.3181,64823.0,64822.0,1.46698052]
[1722464954938,0.3181,64823.0,64822.0,1.46898052]
[1722464955556,0.3181,64823.0,64822.0,1.94706924]
[1722464955759,0.141,64837.0,64828.0,1.329378]
[1722464955967,0.141,64837.0,64828.0,1.6770826]
[1722464956175,0.30901,64829.0,64828.0,1.6770826]
[1722464956385,0.30901,64829.0,64828.0,1.6870826]
[1722464956793,0.30901,64829.0,64828.0,1.54892972]
[1722464957001,0.30901,64829.0,64828.0,1.67707314]
[1722464957356,0.30901,64829.0,64828.0,1.67707455]
[1722464957674,0.30901,64829.0,64828.0,1.53652283]
[1722464957838,0.33319824,64829.0,64828.0,1.53652283]
[1722464958058,0.33319824,64829.0,64828.0,2.02758255]
[1722464958259,0.33319824,64829.0,64828.0,2.04758255]
[1722464958454,0.33319824,64829.0,64828.0,2.00458255]
[1722464960199,0.33319824,64829.0,64828.0,2.00458459]
[1722464960408,0.33319824,64829.0,64828.0,2.00458339]
[1722464960607,0.33319824,64829.0,64828.0,1.87643772]
[1722464960804,0.33319824,64829.0,64828.0,2.00458169]
[1722464961217,0.33319824,64829.0,64828.0,2.00458031]
[1722464961611,0.31776888,64829.0,64828.0,2.00458031]
[1722464961994,0.31776888,64829.0,64828.0,1.47647231]
[1722464962236,0.31776888,64829.0,64828.0,1.34832972]
[1722464962669,0.29358064,64829.0,64828.0,1.34832972]
[1722464962842,0.29358064,64829.0,64828.0,1.58792972]
[1722464963045,0.29358064,64829.0,64828.0,1.56792972]
[1722464963437,0.29358064,64829.0,64828.0,1.58992972]
[1722464963625,0.29358064,64829.0,64828.0,1.71807298]
[1722464963822,0.29358064,64829.0,64828.0,1.58992972]
[1722464964026,0.29358064,64829.0,64828.0,1.58792972]
[1722464964340,0.29358064,64829.0,64828.0,1.55792972]
[1722464964483,0.29358064,64829.0,64828.0,1.56792972]
[1722464964906,0.29358064,64829.0,64828.0,1.408378]
[1722464965108,0.29449365,64829.0,64828.0,1.408378]
[1722464965508,0.29449365,64829.0,64828.0,0.88027]
[1722464965709,0.29449365,64829.0,64828.0,0.571762]
[1722464965710,0.44039365,64829.0,64828.0,0.571762]
[1722464965914,0.46458194,64829.0,64828.0,0.163254]
[1722464966122,0.46458194,64829.0,64828.0,0.78027]
[1722464966470,0.46458194,64829.0,64828.0,1.088778]
[1722464966819,0.46458194,64829.0,64828.0,0.78027]
[1722464967019,0.46458194,64829.0,64828.0,0.163254]
[1722464967286,0.46458194,64829.0,64828.0,0.471762]
[1722464967661,0.46458194,64829.0,64828.0,0.009]
[1722464967662,0.61883294,64829.0,64828.0,0.009]
[1722464967858,0.46458194,64829.0,64828.0,0.009]
[1722464968692,0.46458194,64829.0,64826.0,0.154258]
[1722464968901,0.46458194,64829.0,64828.0,0.462762]
[1722464969110,0.46458194,64829.0,64828.0,0.77227]
[1722464969518,0.31868194,64829.0,64828.0,1.080778]
[1722464969958,0.29449365,64829.0,64828.0,1.080778]
[1722464970360,0.29449365,64829.0,64828.0,1.089778]
[1722464970720,0.29449365,64829.0,64828.0,1.23932972]
[1722464971035,0.29449365,64829.0,64828.0,1.56783772]
[1722464971229,0.29449365,64829.0,64828.0,1.79798457]
[1722464971431,0.29449365,64829.0,64828.0,1.82298457]
[1722464972043,0.29449365,64829.0,64828.0,1.82098457]
[1722464972235,0.29449365,64829.0,64828.0,1.82998457]
[1722464972888,0.29449365,64829.0,64828.0,1.80798457]
[1722464973091,0.31868088,64829.0,64828.0,1.80798457]
[1722464973293,0.31868088,64829.0,64828.0,1.80797356]
[1722464973496,0.31868088,64829.0,64828.0,1.82797356]
[1722464973625,0.26390097,64829.0,64828.0,1.82997356]
[1722464973828,0.23971374,64829.0,64828.0,1.82997356]
[1722464974250,0.23971374,64829.0,64828.0,1.82097356]
[1722464974575,0.23971374,64829.0,64828.0,1.83497356]
[1722464974727,0.21138107,64829.0,64828.0,1.83497356]
[1722464974929,0.19147707,64829.0,64828.0,1.83497356]
[1722464977156,0.19147707,64829.0,64828.0,1.81297356]
[1722464977411,0.21566421,64829.0,64828.0,1.81297356]
[1722464977596,0.21566421,64829.0,64828.0,1.83297356]
[1722464977974,0.21566421,64829.0,64828.0,1.83497356]
[1722464979177,0.21566421,64829.0,64828.0,1.47146556]
[1722464979389,0.21566421,64829.0,64828.0,1.32191384]
[1722464979390,0.35916421,64829.0,64828.0,1.32191384]
[1722464979601,0.35916421,64829.0,64828.0,1.193778]
[1722464979778,0.35916421,64829.0,64828.0,1.32192572]
[1722464980025,0.35916421,64829.0,64828.0,1.193778]
[1722464980314,0.35916421,64829.0,64828.0,1.01341828]
[1722464980510,0.35916421,64829.0,64828.0,0.88527]
[1722464981821,0.35916421,64829.0,64828.0,0.87127]
[1722464982018,0.35916421,64829.0,64828.0,0.87627]
[1722464983398,0.35916421,64829.0,64828.0,0.87127]
[1722464983942,0.35916421,64829.0,64828.0,0.77527]
[1722464984354,0.35916421,64829.0,64828.0,0.77127]
[1722464984528,0.35916421,64829.0,64828.0,0.462762]
[1722464984731,0.35916421,64829.0,64828.0,0.77327]
[1722464985882,0.33497707,64829.0,64828.0,0.77127]
[1722464986308,0.33497707,64829.0,64828.0,0.77047]
[1722464986433,0.33497707,64829.0,64828.0,0.89862019]
[1722464986813,0.33497707,64829.0,64828.0,0.77047]
[1722464987168,0.33497707,64829.0,64828.0,0.89862325]
[1722464987384,0.33497707,64829.0,64828.0,1.20713125]
[1722464987777,0.33497707,64829.0,64828.0,1.20913125]
[1722464988359,0.33497707,64829.0,64828.0,1.20713125]
[1722464988785,0.33497707,64829.0,64828.0,1.21113125]
[1722464989187,0.35916574,64829.0,64828.0,1.078978]
[1722464989591,0.35916574,64829.0,64828.0,1.082978]
[1722464989929,0.21566574,64829.0,64828.0,1.43072928]
[1722464990915,0.21566574,64829.0,64828.0,1.576281]
[1722464991114,0.21566574,64829.0,64828.0,3.110281]
[1722464991353,0.21566574,64829.0,64828.0,3.408789]
[1722464991549,0.21566574,64829.0,64828.0,3.541789]
[1722464991748,0.21566574,64829.0,64828.0,3.517789]
[1722464991976,0.21566574,64829.0,64828.0,1.466681]
[1722464991977,0.35346574,64829.0,64828.0,1.466681]
[1722464992147,0.35346574,64829.0,64828.0,1.31712928]
[1722464992561,0.35346574,64829.0,64828.0,1.178978]
[1722464992883,0.35346574,64829.0,64828.0,1.32112523]
[1722464994413,0.35346574,64829.0,64828.0,0.475962]
[1722464994621,0.35346574,64829.0,64828.0,0.77047]
[1722464994816,0.32927707,64829.0,64828.0,0.461962]
[1722464995432,0.32927707,64829.0,64828.0,0.472962]
[1722464995849,0.32927707,64829.0,64828.0,0.77047]
[1722464997045,0.32927707,64829.0,64828.0,0.89862025]
[1722464997254,0.32927707,64829.0,64828.0,0.77847]
[1722464997900,0.48352807,64829.0,64828.0,0.008]
[1722464998142,0.32927707,64829.0,64828.0,0.008]
[1722464998306,0.32927707,64829.0,64828.0,0.00883]
[1722464998518,0.48352807,64829.0,64828.0,0.00883]
[1722464998668,0.32927707,64829.0,64828.0,0.00883]
[1722464998871,0.32927707,64829.0,64828.0,0.00083]
[1722464999550,0.35346691,64829.0,64828.0,0.00083]
[1722464999956,0.32927707,64829.0,64828.0,0.00083]
[1722465000580,0.32927707,64829.0,64828.0,0.00883]
[1722465000809,0.48352807,64829.0,64828.0,0.00883]
[1722465001010,1.10053407,64829.0,64828.0,0.00083]
[1722465001212,0.48352807,64829.0,64828.0,0.00083]
[1722465001433,0.52963468,64829.0,64828.0,0.00883]